fUST/lending_fUST_20250207
["ID","MTS","AMOUNT","RATE_DAILY","PERIOD"]
[351984590,1738867852396,-500.0,0.00014657,2]
[351984593,1738867852406,-151.0,0.00014657,2]
[351984595,1738867852416,-500.0,0.00014657,2]
[351984597,1738867852426,-506.89134913,0.00014657,2]
[351984599,1738867852435,-500.0,0.00014657,2]
[351984601,1738867852444,-151.0,0.00014657,2]
[351984603,1738867852454,-502.88,0.00014657,2]
[351984605,1738867852464,-1288.72,0.00014657,2]
[351984607,1738867852475,-500.0,0.00014657,2]
[351984609,1738867852485,-561.65,0.00014657,2]
[351984611,1738867852495,-3120.77,0.00014657,2]
[351984613,1738867852505,-5618.4,0.00014657,2]
[351984615,1738867852515,-500.0,0.00014657,2]
[351984617,1738867852525,-13634.73,0.00014657,2]
[351984619,1738867852539,-151.0,0.00014657,2]
[351984621,1738867852548,-500.0,0.00014657,2]
[351984623,1738867852557,-500.0,0.00014657,2]
[351984625,1738867852567,-685.31,0.00014657,2]
[351984627,1738867852577,-500.0,0.00014657,2]
[351984629,1738867852587,-168.835901,0.00014657,2]
[351984631,1738867852596,-151.0,0.00014657,2]
[351984633,1738867852606,-151.0,0.00014657,2]
[351984635,1738867852615,-168.835901,0.00014657,2]
[351984637,1738867852624,-500.0,0.00014657,2]
[351984639,1738867852633,-1324.99,0.00014657,2]
[351984641,1738867852642,-151.0,0.00014657,2]
[351984643,1738867852652,-151.0,0.00014657,2]
[351984645,1738867852663,-1784.76,0.00014657,2]
[351984647,1738867852672,-692.45,0.00014657,2]
[351984649,1738867852684,-561.09,0.00014657,2]
[351984651,1738867852694,-500.0,0.00014657,2]
[351984653,1738867852707,-302.486227,0.00014657,2]
[351984655,1738867852716,-151.0,0.00014657,2]
[351984657,1738867852726,-6907.11,0.00014657,2]
[351984659,1738867852735,-302.486227,0.00014657,2]
[351984661,1738867852745,-607.17,0.00014657,2]
[351984663,1738867852755,-151.0,0.00014657,2]
[351984665,1738867852764,-151.0,0.00014657,2]
[351984668,1738867852774,-151.0,0.00014657,2]
[351984670,1738867852786,-500.0,0.00014657,2]
[351984672,1738867852796,-151.0,0.00014657,2]
[351984674,1738867852806,-151.0,0.00014657,2]
[351984676,1738867852815,-151.0,0.00014657,2]
[351984678,1738867852825,-500.0,0.00014657,2]
[351984680,1738867852836,-500.0,0.00014657,2]
[351984682,1738867852847,-151.0,0.00014657,2]
[351984684,1738867852858,-500.0,0.00014657,2]
[351984686,1738867852875,-500.0,0.00014657,2]
[351984688,1738867852892,-628.61,0.00014657,2]
[351984690,1738867852902,-151.0,0.00014657,2]
[351984692,1738867852911,-500.0,0.00014657,2]
[351984694,1738867852921,-1050.66,0.00014657,2]
[351984696,1738867852931,-500.0,0.00014657,2]
[351984698,1738867852941,-1088.51,0.00014657,2]
[351984700,1738867852951,-1124.48,0.00014657,2]
[351984702,1738867852962,-577.59,0.00014657,2]
[351984704,1738867852971,-3227.45,0.00014657,2]
[351984706,1738867852981,-729.8,0.00014657,2]
[351984708,1738867852991,-509.63,0.00014657,2]
[351984710,1738867853000,-500.0,0.00014657,2]
[351984712,1738867853010,-500.0,0.00014657,2]
[351984714,1738867853019,-594.51,0.00014657,2]
[351984716,1738867853030,-151.0,0.00014694,2]
[351984718,1738867853039,-151.0,0.00014694,2]
[351984720,1738867853048,-600.0,0.00014727,2]
[351984722,1738867853058,-22603.00016514,0.00014782,2]
[351984724,1738867853068,-500.0,0.00014794,2]
[351984726,1738867853079,-500.0,0.00014794,2]
[351984728,1738867853089,-500.0,0.00014794,2]
[351984730,1738867853098,-500.02,0.00014794,2]
[351984732,1738867853108,-500.0,0.00014794,2]
[351984734,1738867853118,-235.47903973,0.00014794,2]
[351984736,1738867853130,-606.64,0.00014794,2]
[351984738,1738867853140,-500.0,0.00014794,2]
[351984740,1738867853150,-500.0,0.00014794,2]
[351984742,1738867853160,-177.503078,0.00014794,2]
[351984744,1738867853170,-177.503078,0.00014794,2]
[351984746,1738867853180,-500.0,0.00014794,2]
[351984748,1738867853190,-500.0,0.00014794,2]
[351984750,1738867853202,-500.0,0.00014794,2]
[351984753,1738867853213,-1424.55,0.00014794,2]
[351984755,1738867853223,-1613.31,0.00014794,2]
[351984757,1738867853233,-500.0,0.00014794,2]
[351984759,1738867853244,-500.0,0.00014794,2]
[351984761,1738867853254,-500.0,0.00014794,2]
[351984763,1738867853264,-502.88,0.00014794,2]
[351984765,1738867853274,-1288.72,0.00014794,2]
[351984767,1738867853287,-500.0,0.00014794,2]
[351984769,1738867853298,-561.65,0.00014794,2]
[351984771,1738867853308,-3120.77,0.00014794,2]
[351984773,1738867853318,-5618.4,0.00014794,2]
[351984776,1738867853329,-500.0,0.00014794,2]
[351984778,1738867853339,-13634.73,0.00014794,2]
[351984779,1738867853348,-500.0,0.00014794,2]
[351984782,1738867853359,-500.0,0.00014794,2]
[351984784,1738867853368,-685.31,0.00014794,2]
[351984786,1738867853378,-500.0,0.00014794,2]
[351984788,1738867853388,-500.0,0.00014794,2]
[351984790,1738867853398,-1324.99,0.00014794,2]
[351984792,1738867853408,-1784.76,0.00014794,2]
[351984794,1738867853418,-692.45,0.00014794,2]
[351984796,1738867853427,-561.09,0.00014794,2]
[351984798,1738867853437,-500.0,0.00014794,2]
[351984800,1738867853446,-6712.05472714,0.00014794,2]
[351984802,1738867853462,-195.05527286,0.00014794,2]
[351984804,1738867853471,-607.17,0.00014794,2]
[351984807,1738867853481,-500.0,0.00014794,2]
[351984809,1738867853491,-500.0,0.00014794,2]
[351984811,1738867853500,-500.0,0.00014794,2]
[351984813,1738867853509,-146.86112835,0.00014794,2]
[351984815,1738867853521,-225.35743499,0.00014794,2]
[351984817,1738867853533,-500.0,0.00014794,2]
[351984819,1738867853542,-628.61,0.00014794,2]
[351984821,1738867853551,-399.15078858,0.00014794,2]
[351984823,1738867853561,-351.24068228,0.00014794,2]
[351984825,1738867853572,-699.41931772,0.00014794,2]
[351984827,1738867853582,-500.0,0.00014794,2]
[351984829,1738867853591,-1088.51,0.00014794,2]
[351984831,1738867853601,-1124.48,0.00014794,2]
[351984833,1738867853611,-577.59,0.00014794,2]
[351984835,1738867853620,-1210.00069028,0.00014794,2]
[351984839,1738867853649,-2017.44930972,0.00014794,2]
[351984841,1738867853660,-729.8,0.00014794,2]
[351984844,1738867853670,-509.63,0.00014794,2]
[351984845,1738867853679,-500.0,0.00014794,2]
[351984847,1738867853689,-500.0,0.00014794,2]
[351984849,1738867853699,-594.51,0.00014794,2]
[351984852,1738867853708,-675.79776049,0.00014827,2]
[351984853,1738867853718,-213.16247813,0.000149,2]
[351984855,1738867853727,-2000.0,0.000149,2]
[351984858,1738867853737,-500.0,0.00014931,2]
[351984859,1738867853747,-500.0,0.00014931,2]
[351984861,1738867853756,-500.0,0.00014931,2]
[351984863,1738867853766,-500.02,0.00014931,2]
[351984865,1738867853776,-500.0,0.00014931,2]
[351984867,1738867853788,-606.64,0.00014931,2]
[351984869,1738867853798,-500.0,0.00014931,2]
[351984871,1738867853807,-500.0,0.00014931,2]
[351984873,1738867853817,-500.0,0.00014931,2]
[351984875,1738867853826,-500.0,0.00014931,2]
[351984878,1738867853836,-263.35711302,0.00014931,2]
[351984879,1738867853846,-1424.55,0.00014931,2]
[351984882,1738867853856,-1613.31,0.00014931,2]
[351984884,1738867853866,-500.0,0.00014931,2]
[351984885,1738867853876,-500.0,0.00014931,2]
[351984888,1738867853886,-500.0,0.00014931,2]
[351984889,1738867853896,-502.88,0.00014931,2]
[351984891,1738867853906,-1288.72,0.00014931,2]
[351984893,1738867853917,-500.0,0.00014931,2]
[351984895,1738867853927,-561.65,0.00014931,2]
[351984898,1738867853937,-3120.77,0.00014931,2]
[351984900,1738867853947,-5618.4,0.00014931,2]
[351984901,1738867853957,-500.0,0.00014931,2]
[351984904,1738867853968,-13634.73,0.00014931,2]
[351984905,1738867853977,-500.0,0.00014931,2]
[351984907,1738867853986,-500.0,0.00014931,2]
[351984909,1738867853996,-685.31,0.00014931,2]
[351984911,1738867854006,-500.0,0.00014931,2]
[351984913,1738867854016,-500.0,0.00014931,2]
[351984915,1738867854025,-1324.99,0.00014931,2]
[351984917,1738867854038,-1784.76,0.00014931,2]
[351984919,1738867854047,-692.45,0.00014931,2]
[351984921,1738867854057,-561.09,0.00014931,2]
[351984923,1738867854067,-500.0,0.00014931,2]
[351984925,1738867854076,-6907.11,0.00014931,2]
[351984927,1738867854086,-607.17,0.00014931,2]
[351984929,1738867854096,-500.0,0.00014931,2]
[351984931,1738867854108,-500.0,0.00014931,2]
[351984933,1738867854117,-500.0,0.00014931,2]
[351984935,1738867854129,-389.19705189,0.00014931,2]
[351984937,1738867854141,-628.61,0.00014931,2]
[351984939,1738867854150,-1050.66,0.00014931,2]
[351984941,1738867854160,-500.0,0.00014931,2]
[351984943,1738867854171,-1088.51,0.00014931,2]
[351984945,1738867854181,-1124.48,0.00014931,2]
[351984947,1738867854190,-577.59,0.00014931,2]
[351984949,1738867854201,-3227.45,0.00014931,2]
[351984951,1738867854214,-729.8,0.00014931,2]
[351984953,1738867854224,-509.63,0.00014931,2]
[351984955,1738867854233,-500.0,0.00014931,2]
[351984957,1738867854243,-500.0,0.00014931,2]
[351984959,1738867854252,-594.51,0.00014931,2]
[351984961,1738867854263,-2000.0,0.00015,2]
[351984964,1738867854274,-2000.0,0.00015,2]
[351984965,1738867854287,-1000.0,0.00015,15]
[351984967,1738867854296,-151.0,0.00015,2]
[351984969,1738867854306,-151.715586,0.00015,2]
[351984971,1738867854316,-299.022,0.00015,2]
[351984973,1738867854326,-13262.49839917,0.00015014,2]
[351984975,1738867854336,-500.0,0.00015068,2]
[351984977,1738867854346,-500.0,0.00015068,2]
[351984979,1738867854356,-500.0,0.00015068,2]
[351984981,1738867854365,-500.02,0.00015068,2]
[351984983,1738867854375,-500.0,0.00015068,2]
[351984985,1738867854384,-606.64,0.00015068,2]
[351984987,1738867854393,-500.0,0.00015068,2]
[351984989,1738867854403,-500.0,0.00015068,2]
[351984991,1738867854413,-564.46260143,0.00015068,2]
[351984993,1738867854422,-500.0,0.00015068,2]
[351984995,1738867854432,-1424.55,0.00015068,2]
[351984997,1738867854442,-1613.31,0.00015068,2]
[351984999,1738867854451,-500.0,0.00015068,2]
[351985001,1738867854461,-500.0,0.00015068,2]
[351985003,1738867854471,-500.0,0.00015068,2]
[351985005,1738867854481,-502.88,0.00015068,2]
[351985007,1738867854491,-1288.72,0.00015068,2]
[351985009,1738867854502,-500.0,0.00015068,2]
[351985011,1738867854512,-561.65,0.00015068,2]
[351985013,1738867854523,-3120.77,0.00015068,2]
[351985015,1738867854536,-5618.4,0.00015068,2]
[351985017,1738867854547,-500.0,0.00015068,2]
[351985019,1738867854557,-13634.73,0.00015068,2]
[351985021,1738867854567,-151.0,0.00015068,2]
[351985023,1738867854576,-500.0,0.00015068,2]
[351985025,1738867854586,-500.0,0.00015068,2]
[351985027,1738867854596,-685.31,0.00015068,2]
[351985029,1738867854606,-183.1636959,0.00015068,2]
[351985031,1738867854620,-316.8363041,0.00015068,2]
[351985033,1738867854631,-168.835901,0.00015068,2]
[351985035,1738867854640,-151.0,0.00015068,2]
[351985037,1738867854650,-168.835901,0.00015068,2]
[351985039,1738867854660,-500.0,0.00015068,2]
[351985041,1738867854669,-1324.99,0.00015068,2]
[351985043,1738867854678,-66.50189382,0.00015068,2]
[351985045,1738867854690,-84.49810618,0.00015068,2]
[351985047,1738867854700,-151.0,0.00015068,2]
[351985049,1738867854710,-1213.7435834,0.00015068,2]
[351985060,1738867854805,-571.0164166,0.00015068,2]
[351985062,1738867854815,-692.45,0.00015068,2]
[351985064,1738867854824,-561.09,0.00015068,2]
[351985066,1738867854834,-500.0,0.00015068,2]
[351985068,1738867854844,-302.486227,0.00015068,2]
[351985070,1738867854853,-151.0,0.00015068,2]
[351985072,1738867854863,-302.486227,0.00015068,2]
[351985074,1738867854872,-6907.11,0.00015068,2]
[351985075,1738867854882,-607.17,0.00015068,2]
[351985077,1738867854892,-202.860229,0.00015068,2]
[351985079,1738867854902,-151.0,0.00015068,2]
[351985081,1738867854912,-500.0,0.00015068,2]
[351985083,1738867854921,-151.0,0.00015068,2]
[351985085,1738867854931,-151.0,0.00015068,2]
[351985087,1738867854941,-500.0,0.00015068,2]
[351985089,1738867854951,-500.0,0.00015068,2]
[351985091,1738867854960,-628.61,0.00015068,2]
[351985093,1738867854970,-151.0,0.00015068,2]
[351985095,1738867854980,-151.0,0.00015068,2]
[351985097,1738867854990,-151.0,0.00015068,2]
[351985099,1738867855000,-425.37238126,0.00015068,2]
[351985101,1738867855011,-300.0,0.00015068,2]
[351985103,1738867855022,-325.28761874,0.00015068,2]
[351985105,1738867855035,-500.0,0.00015068,2]
[351985108,1738867855045,-360.90855603,0.00015068,2]
[351985110,1738867855058,-727.60144397,0.00015068,2]
[351985112,1738867855067,-500.56151542,0.00015068,2]
[351985114,1738867855079,-601.90269518,0.00015068,2]
[351985135,1738867855295,-22.0157894,0.00015068,2]
[351985137,1738867855305,-399.39933,0.00015068,2]
[351985139,1738867855315,-476.13766296,0.00015068,2]
[351985141,1738867855327,-1921.32,0.00015068,2]
[351985143,1738867855338,-829.99233704,0.00015068,2]
[351985157,1738867855471,-399.39933,0.00015068,2]
[351985159,1738867855481,-577.59,0.00015068,2]
[351985161,1738867855491,-193.01833296,0.00015068,2]
[351986584,1738868741161,-339.78881467,0.0001315,2]
[351986585,1738868850089,-260.21118533,0.0001315,2]
[351986586,1738868850110,-134.50097246,0.00013598,2]
[351986587,1738868853112,-200.9687589,0.00013598,2]
[351986640,1738869032284,-500.0,0.0001315,2]
[351986641,1738869032294,-464.914604,0.00013598,2]
[351986642,1738869032305,-500.0,0.00013673,2]
[351986643,1738869032318,-500.0,0.00013673,2]
[351986644,1738869032328,-500.0,0.00013673,2]
[351986645,1738869032338,-300.0,0.00013697,2]
[351986646,1738869032348,-356.66351944,0.00013698,2]
[351986668,1738869038044,-143.33648056,0.00013698,2]
[351986669,1738869038054,-189.21202171,0.00013698,2]
[351986670,1738869038064,-500.0,0.00013698,2]
[351986671,1738869038077,-501.09861505,0.00013698,2]
[351986672,1738869038087,-500.0,0.00013698,2]
[351986673,1738869038096,-500.0,0.00013698,2]
[351986674,1738869038107,-500.0,0.00013698,2]
[351986675,1738869038118,-500.43244295,0.00013698,2]
[351986676,1738869038128,-500.0,0.00013698,2]
[351986677,1738869038138,-500.0,0.00013698,2]
[351986679,1738869038148,-500.0,0.00013698,2]
[351986681,1738869038158,-500.0,0.00013698,2]
[351986682,1738869038168,-207.0674516,0.00013698,2]
[351986744,1738869040213,-292.9325484,0.00013698,2]
[351986745,1738869040224,-500.0,0.00013698,2]
[351986746,1738869040234,-500.0,0.00013698,2]
[351986747,1738869040244,-495.75833282,0.00013698,2]
[351986748,1738869040254,-500.0,0.00013698,2]
[351986749,1738869040264,-572.73824076,0.00013698,2]
[351986750,1738869040274,-211.83939095,0.00013698,2]
[351986751,1738869040284,-500.0,0.00013698,2]
[351986752,1738869040294,-500.0,0.00013698,2]
[351986753,1738869040304,-500.0,0.00013698,2]
[351986754,1738869040314,-500.0,0.00013698,2]
[351986755,1738869040326,-500.0,0.00013698,2]
[351986756,1738869040336,-510.90131772,0.00013698,2]
[351986757,1738869040346,-500.0,0.00013698,2]
[351986758,1738869040355,-4.65457638,0.00013698,2]
[351986759,1738869040413,-495.34542362,0.00013698,2]
[351986760,1738869040423,-500.0,0.00013698,2]
[351986761,1738869040432,-500.0,0.00013698,2]
[351986762,1738869040442,-510.63808648,0.00013698,2]
[351986763,1738869040452,-500.0,0.00013698,2]
[351986764,1738869040461,-500.0,0.00013698,2]
[351986765,1738869040471,-500.0,0.00013698,2]
[351986766,1738869040481,-500.0,0.00013698,2]
[351986767,1738869040493,-500.0,0.00013698,2]
[351986768,1738869040502,-500.0,0.00013698,2]
[351986769,1738869040512,-500.0,0.00013698,2]
[351986770,1738869040523,-296.721,0.00013698,2]
[351986771,1738869040536,-500.0,0.00013698,2]
[351986772,1738869040547,-500.0,0.00013698,2]
[351986773,1738869040558,-500.0,0.00013698,2]
[351986774,1738869040569,-500.0,0.00013698,2]
[351986775,1738869040581,-214.37147578,0.00013698,2]
[351986776,1738869040592,-500.0,0.00013698,2]
[351986777,1738869040602,-500.0,0.00013698,2]
[351986778,1738869040613,-500.0,0.00013698,2]
[351986779,1738869040623,-500.0,0.00013698,2]
[351986780,1738869040632,-500.0,0.00013698,2]
[351986781,1738869040641,-500.0,0.00013698,2]
[351986782,1738869040651,-518.08842495,0.00013698,2]
[351986783,1738869040660,-500.0,0.00013698,2]
[351986784,1738869040670,-500.0,0.00013698,2]
[351986785,1738869040679,-302.93036821,0.00013698,2]
[351986786,1738869040689,-55.83812322,0.00013698,2]
[351986797,1738869043115,-444.16187678,0.00013698,2]
[351986798,1738869043125,-500.0,0.00013698,2]
[351986799,1738869043134,-96.03812472,0.00013698,2]
[351986800,1738869043174,-403.96187528,0.00013698,2]
[351986801,1738869043183,-423.25274302,0.00013698,2]
[351987087,1738869046051,-76.74725698,0.00013698,2]
[351987089,1738869046061,-500.0,0.00013698,2]
[351987091,1738869046071,-500.0,0.00013698,2]
[351987093,1738869046085,-500.0,0.00013698,2]
[351987095,1738869046094,-500.0,0.00013698,2]
[351987097,1738869046104,-500.0,0.00013698,2]
[351987099,1738869046114,-500.0,0.00013698,2]
[351987101,1738869046123,-500.0,0.00013698,2]
[351987103,1738869046133,-500.0,0.00013698,2]
[351987105,1738869046144,-500.0,0.00013698,2]
[351987107,1738869046153,-500.0,0.00013698,2]
[351987109,1738869046163,-500.0,0.00013698,2]
[351987111,1738869046172,-500.0,0.00013698,2]
[351987113,1738869046182,-501.88317149,0.00013698,2]
[351987115,1738869046192,-500.0,0.00013698,2]
[351987117,1738869046202,-500.0,0.00013698,2]
[351987119,1738869046212,-500.0,0.00013698,2]
[351987121,1738869046221,-500.0,0.00013698,2]
[351987123,1738869046231,-500.0,0.00013698,2]
[351987125,1738869046241,-500.0,0.00013698,2]
[351987127,1738869046251,-500.0,0.00013698,2]
[351987129,1738869046261,-500.0,0.00013698,2]
[351987131,1738869046271,-500.0,0.00013698,2]
[351987133,1738869046280,-500.0,0.00013698,2]
[351987135,1738869046289,-500.0,0.00013698,2]
[351987137,1738869046299,-378.39249092,0.00013698,2]
[351987139,1738869046308,-500.0,0.00013698,2]
[351987141,1738869046318,-500.0,0.00013698,2]
[351987143,1738869046328,-500.0,0.00013698,2]
[351987145,1738869046338,-194.11203986,0.00013698,2]
[351987147,1738869046348,-524.39256228,0.00013698,2]
[351987149,1738869046357,-500.0,0.00013698,2]
[351987151,1738869046367,-500.0,0.00013698,2]
[351987153,1738869046377,-500.0,0.00013698,2]
[351987155,1738869046387,-500.0,0.00013698,2]
[351987157,1738869046398,-500.0,0.00013698,2]
[351987159,1738869046408,-500.0,0.00013698,2]
[351987161,1738869046418,-500.0,0.00013698,2]
[351987163,1738869046427,-500.0,0.00013698,2]
[351987165,1738869046436,-500.0,0.00013698,2]
[351987167,1738869046446,-500.0,0.00013698,2]
[351987169,1738869046456,-500.0,0.00013698,2]
[351987171,1738869046465,-500.0,0.00013698,2]
[351987173,1738869046475,-500.0,0.00013698,2]
[351987175,1738869046487,-433.84468011,0.00013698,2]
[351987177,1738869046496,-500.0,0.00013698,2]
[351987179,1738869046506,-500.0,0.00013698,2]
[351987181,1738869046515,-500.0,0.00013698,2]
[351987183,1738869046525,-544.81791568,0.00013698,2]
[351987185,1738869046536,-500.0,0.00013698,2]
[351987187,1738869046545,-500.0,0.00013698,2]
[351987189,1738869046555,-500.0,0.00013698,2]
[351987191,1738869046565,-500.0,0.00013698,2]
[351987193,1738869046578,-500.0,0.00013698,2]
[351987195,1738869046588,-500.0,0.00013698,2]
[351987197,1738869046598,-500.0,0.00013698,2]
[351987199,1738869046607,-500.0,0.00013698,2]
[351987201,1738869046617,-500.0,0.00013698,2]
[351987203,1738869046627,-500.0,0.00013698,2]
[351987205,1738869046636,-503.71208199,0.00013698,2]
[351987207,1738869046646,-500.0,0.00013698,2]
[351987209,1738869046655,-500.0,0.00013698,2]
[351987211,1738869046665,-500.0,0.00013698,2]
[351987213,1738869046674,-500.0,0.00013698,2]
[351987215,1738869046684,-500.0,0.00013698,2]
[351987217,1738869046693,-500.0,0.00013698,2]
[351987219,1738869046702,-500.0,0.00013698,2]
[351987221,1738869046713,-500.0,0.00013698,2]
[351987223,1738869046722,-500.0,0.00013698,2]
[351987225,1738869046732,-500.0,0.00013698,2]
[351987227,1738869046742,-42.09754569,0.00013698,2]
[351987230,1738869046758,-457.90245431,0.00013698,2]
[351987232,1738869046768,-500.0,0.00013698,2]
[351987234,1738869046778,-500.0,0.00013698,2]
[351987236,1738869046788,-500.0,0.00013698,2]
[351987238,1738869046798,-500.0,0.00013698,2]
[351987240,1738869046809,-500.0,0.00013698,2]
[351987242,1738869046819,-500.0,0.00013698,2]
[351987244,1738869046831,-300.684998,0.00013698,2]
[351987246,1738869046841,-500.0,0.00013698,2]
[351987248,1738869046852,-500.0,0.00013698,2]
[351987250,1738869046862,-500.0,0.00013698,2]
[351987252,1738869046873,-500.0,0.00013698,2]
[351987254,1738869046883,-500.0,0.00013698,2]
[351987256,1738869046894,-500.0,0.00013698,2]
[351987258,1738869046904,-500.0,0.00013698,2]
[351987260,1738869046914,-276.14442453,0.00013698,2]
[351987262,1738869046924,-149.32348562,0.00013698,2]
[351987264,1738869046938,-350.67651438,0.00013698,2]
[351987266,1738869046949,-500.0,0.00013698,2]
[351987268,1738869046959,-500.0,0.00013698,2]
[351987270,1738869046969,-500.0,0.00013698,2]
[351987272,1738869046981,-500.0,0.00013698,2]
[351987274,1738869046991,-500.0,0.00013698,2]
[351987276,1738869047001,-500.0,0.00013698,2]
[351987278,1738869047011,-500.0,0.00013698,2]
[351987280,1738869047021,-500.0,0.00013698,2]
[351987282,1738869047031,-402.56008187,0.00013698,2]
[351987284,1738869047041,-122.25049876,0.00013698,2]
[351987287,1738869047054,-377.74950124,0.00013698,2]
[351987289,1738869047064,-500.0,0.00013698,2]
[351987291,1738869047075,-500.0,0.00013698,2]
[351987293,1738869047090,-500.0,0.00013698,2]
[351987295,1738869047100,-500.0,0.00013698,2]
[351987297,1738869047110,-500.0,0.00013698,2]
[351987299,1738869047120,-500.0,0.00013698,2]
[351987301,1738869047130,-373.93243416,0.00013698,2]
[351987303,1738869047140,-500.0,0.00013698,2]
[351987305,1738869047149,-500.0,0.00013698,2]
[351987307,1738869047159,-500.0,0.00013698,2]
[351987309,1738869047169,-500.0,0.00013698,2]
[351987311,1738869047179,-500.0,0.00013698,2]
[351987313,1738869047189,-500.0,0.00013698,2]
[351987315,1738869047199,-500.0,0.00013698,2]
[351987317,1738869047208,-240.73723363,0.00013698,2]
[351987319,1738869047217,-500.0,0.00013698,2]
[351987321,1738869047227,-500.0,0.00013698,2]
[351987323,1738869047238,-500.0,0.00013698,2]
[351987325,1738869047247,-500.0,0.00013698,2]
[351987327,1738869047257,-500.0,0.00013698,2]
[351987329,1738869047266,-500.0,0.00013698,2]
[351987331,1738869047276,-501.77023092,0.00013698,2]
[351987333,1738869047286,-500.0,0.00013698,2]
[351987335,1738869047295,-500.0,0.00013698,2]
[351987337,1738869047305,-500.0,0.00013698,2]
[351987339,1738869047315,-506.24447656,0.00013698,2]
[351987341,1738869047325,-500.0,0.00013698,2]
[351987343,1738869047337,-500.0,0.00013698,2]
[351987345,1738869047346,-500.0,0.00013698,2]
[351987347,1738869047356,-500.0,0.00013698,2]
[351987349,1738869047365,-500.0,0.00013698,2]
[351987351,1738869047375,-500.0,0.00013698,2]
[351987353,1738869047384,-500.0,0.00013698,2]
[351987355,1738869047394,-500.0,0.00013698,2]
[351987356,1738869047404,-214.02432398,0.00013698,2]
[351987358,1738869047413,-500.0,0.00013698,2]
[351987360,1738869047423,-182.68249531,0.00013698,2]
[351987361,1738869047432,-500.0,0.00013698,2]
[351987362,1738869047441,-500.0,0.00013698,2]
[351987363,1738869047451,-500.0,0.00013698,2]
[351987364,1738869047461,-500.0,0.00013698,2]
[351987365,1738869047470,-500.0,0.00013698,2]
[351987366,1738869047479,-500.0,0.00013698,2]
[351987367,1738869047488,-494.39543371,0.00013698,2]
[351987368,1738869047502,-500.0,0.00013698,2]
[351987369,1738869047511,-500.0,0.00013698,2]
[351987370,1738869047521,-500.0,0.00013698,2]
[351987371,1738869047530,-500.0,0.00013698,2]
[351987372,1738869047541,-500.0,0.00013698,2]
[351987373,1738869047550,-500.0,0.00013698,2]
[351987374,1738869047560,-512.38737142,0.00013698,2]
[351987375,1738869047570,-500.0,0.00013698,2]
[351987376,1738869047581,-500.0,0.00013698,2]
[351987377,1738869047591,-500.0,0.00013698,2]
[351987378,1738869047600,-500.0,0.00013698,2]
[351987379,1738869047610,-500.0,0.00013698,2]
[351987381,1738869047619,-500.0,0.00013698,2]
[351987383,1738869047629,-500.0,0.00013698,2]
[351987385,1738869047638,-500.0,0.00013698,2]
[351987387,1738869047648,-500.0,0.00013698,2]
[351987389,1738869047658,-189.03119929,0.00013698,2]
[351989838,1738869450866,160.0,0.00017387,120]
[351989846,1738870041113,-206.8180615,0.00012685,2]
[351989847,1738870041134,-693.1819385,0.00012793,2]
[351989848,1738870042117,-345.44559326,0.00012793,2]